[Event "SixDays Budapest March IM 2023"]
[Site "Budapest"]
[Date "2023.03.24"]
[Round "1.1"]
[White "Balogh, Peter"]
[Black "Pham, Tran Gia Phuc"]
[Result "1/2-1/2"]
[ECO "B67"]
[WhiteElo "2264"]
[BlackElo "2238"]
[Annotator "TA"]
[PlyCount "88"]
[EventDate "2023.03.24"]
[EventType "tourn"]
[EventCountry "HUN"]
[SourceTitle "playchess.com"]
[Source "ChessBase"]
[SourceQuality "1"]
[TimeControl "5400+30"]

{[%evp 18,88,28,12,47,37,69,26,28,0,1,-5,0,0,0,-77,-57,-52,-45,-54,-62,-134,-134,-136,-89,-81,-79,-135,-145,-157,-21,-29,-51,-37,0,0,4,0,35,26,26,33,32,0,0,0,0,0,0,0,0,0,0,-14,-8,-12,-6,-35,0,0,0,0,0,0,0,0,0,0,0,0,0,0,0]} 1. e4 {[%emt 0:03:29]} c5 {[%emt 0:00:40]} 2. Nf3 {[%emt 0:00:10]} Nc6 {[%emt 0:00:08]} 3. d4 {[%emt 0:00:06]} cxd4 {[%emt 0:00:04]} 4. Nxd4 {[%emt 0:00:05]} Nf6 {[%emt 0:00:07]} 5. Nc3 {[%emt 0:00:17]} d6 {[%emt 0:00:07]} 6. Bg5 {[%emt 0:01:11]} e6 {[%emt 0:00:11]} 7. Qd2 {[%emt 0:01:09]} a6 {[%emt 0:00:13]} 8. O-O-O {[%emt 0:00:10]} Bd7 {[%emt 0:00:20]} 9. f3 {[%emt 0:00:18]} Be7 {[%emt 0:02:35]} 10. g4 {[%emt 0:02:17]} b5 {[%emt 0:01:33] B67: Sicilian: Richter-Rauzer: 7...a6 8 0-0-0 Bd7, lines without 9 f4 Be7.} 11. h4 {[%emt 0:00:24]} Ne5 {[%emt 0:01:35]} 12. Bxf6 {[%emt 0:00:51]} gxf6 {[%emt 0:00:23] White has an edge.} 13. Rg1 {[%emt 0:00:36] [#]} Qb6 $146 {[%emt 0:03:06]} ({Predecessor:} 13... Qa5 14. f4 b4 15. Nb1 Nc6 16. Bc4 Qc5 17. Qd3 Nxd4 18. Qxd4 Qxd4 19. Rxd4 d5 {0-1 Peshkova,Y-Arutiunova,Y RUS-ch U18 Girls 2001 (4)}) 14. f4 {[%emt 0:06:48]} b4 {[%emt 0:02:40]} 15. Nb1 {[%emt 0:08:09]} Nc6 {[%emt 0:00:30]} 16. Bg2 {[%emt 0:06:15]} (16. Nf3 $11 {keeps the balance.}) 16... Qxd4 {[%emt 0:07:48]} 17. Qxd4 {[%emt 0:00:08]} Nxd4 {[%emt 0:00:04]} 18. Rxd4 {[%emt 0:00:09]} Rb8 {[%emt 0:00:18]} 19. Re1 {[%emt 0:01:26]} (19. f5 $15) 19... e5 $17 {[%emt 0:00:12]} 20. Rd3 {[%emt 0:01:31]} Bxg4 {[%emt 0:00:33]} (20... exf4 $142 21. Bf3 Rg8) 21. f5 {[%emt 0:00:07]} Rg8 {[%emt 0:00:16][%cal Og4f5]} 22. Rg3 {[%emt 0:03:13]} ({Better is} 22. Bf1) 22... Kd7 {[%emt 0:03:14][%cal Og4f5]} 23. Bf1 {[%emt 0:07:41]} a5 {[%emt 0:00:27]} ({Black should play} 23... Bf8 $17 {...Bh6+ would be deadly.} 24. Nd2 Bh6) 24. Bc4 $1 $11 {[%emt 0:00:44]} Bh5 {[%emt 0:00:20]} 25. Reg1 {[%emt 0:01:00]} Rxg3 {[%emt 0:00:27]} (25... Rgc8 $5 {[%cal Rc8c4]} 26. b3 Bf8 $15) 26. Rxg3 {[%emt 0:00:03]} Bf8 {[%emt 0:00:07]} 27. c3 {[%emt 0:02:52]} a4 {[%emt 0:00:12]} 28. b3 {[%emt 0:02:33]} Bh6+ {[%emt 0:04:34]} 29. Kc2 {[%emt 0:00:15] Threatens to win with cxb4.} axb3+ {[%emt 0:09:21]} 30. axb3 {[%emt 0:02:18] Hoping for cxb4.} (30. Bxb3 $5 {[%cal Rc3b4]} Rc8 31. Kd3 $11) 30... Ra8 {[%emt 0:04:03] [#] ( -> ...Ra2+)} 31. Kb2 {[%emt 0:01:21] Wards off Ra2+} Rc8 $1 {[%emt 0:01:45]} 32. cxb4 {[%emt 0:01:47]} d5 {[%emt 0:00:08]} 33. exd5 {[%emt 0:01:46]} e4 {[%emt 0:00:13]} 34. Nc3 {[%emt 0:04:00]} Bf3 {[%emt 0:01:24]} 35. b5 {[%emt 0:05:17]} Kd6 {[%emt 0:00:43]} 36. b6 {[%emt 0:02:27]} Rb8 {[%emt 0:02:36]} 37. Nb5+ {[%emt 0:03:47]} Kd7 {[%emt 0:04:49]} 38. b7 {[%emt 0:07:12][%mdl 64] [#] Deflection. The position is equal.} Rxb7 {[%emt 0:02:56]} 39. Rg8 {[%emt 0:02:13]} e3 {[%emt 0:01:26] White must now prevent ...e2.} 40. Nd4 {[%emt 0:01:19]} Be4 {[%emt 0:00:49]} 41. Rg4 {[%emt 0:04:50]} Bh1 {[%emt 0:02:30]} 42. Rg1 {[%emt 0:00:49]} Be4 {[%emt 0:02:12]} 43. Rg4 {[%emt 0:00:14]} Bh1 {[%emt 0:02:28]} 44. Rg1 {[%emt 0:00:07]} Be4 {[%emt 0:00:05] Weighted Error Value: White=0.13 (very precise) /Black=0.14 (very precise)} 1/2-1/2

[Event "SixDays Budapest March IM 2023"]
[Site "Budapest"]
[Date "2023.03.24"]
[Round "1.2"]
[White "To, Nhat Minh"]
[Black "Halak, Miklos"]
[Result "1/2-1/2"]
[ECO "C72"]
[WhiteElo "2342"]
[BlackElo "2257"]
[Annotator "TA"]
[PlyCount "36"]
[EventDate "2023.03.24"]
[EventType "tourn"]
[EventCountry "HUN"]
[SourceTitle "playchess.com"]
[Source "ChessBase"]
[SourceQuality "1"]
[TimeControl "5400+30"]

{[%evp 17,18,29,32]} 1. e4 {[%emt 0:00:32]} e5 {[%emt 0:00:33]} 2. Nf3 {[%emt 0:00:05]} Nc6 {[%emt 0:00:01]} 3. Bb5 {[%emt 0:00:07]} a6 {[%emt 0:00:13]} 4. Ba4 {[%emt 0:00:03]} d6 {[%emt 0:00:08]} 5. O-O {[%emt 0:00:07]} Bd7 {[%emt 0:00:04]} 6. c3 {[%emt 0:00:06]} Nge7 {[%emt 0:00:23]} 7. d4 {[%emt 0:00:05]} Ng6 {[%emt 0:00:10]} 8. Re1 {[%emt 0:00:06]} Be7 {[%emt 0:00:17]} 9. Nbd2 {[%emt 0:00:07]} O-O $1 {[%emt 0:00:19] [#]  The main line 9...0-0 scores better than 9...h6.} {Predecessor:} 10. Nf1 $146 {C75: Ruy Lopez: Deferred Steinitz: 5 c3 Bd7 6 d4 without ...g6.} exd4 11. cxd4 Bg4 12. Bxc6 bxc6 13. Ne3 Bd7 14. Qc2 Bf6 15. Bd2 Re8 16. Rad1 Qb8 17. Bc3 Qb5 18. e5 Be7 {½-½ Durarbayli,V (2635)-Alekseenko,K (2686) Chessable Play In Match rapid 2023 (1.1)} 1/2-1/2

[Event "SixDays Budapest March IM 2023"]
[Site "Budapest"]
[Date "2023.03.24"]
[Round "1.3"]
[White "Horvath, David"]
[Black "Gandhi, Anish"]
[Result "1/2-1/2"]
[ECO "A16"]
[WhiteElo "2380"]
[BlackElo "2187"]
[Annotator "TA"]
[PlyCount "67"]
[EventDate "2023.03.24"]
[EventType "tourn"]
[EventCountry "HUN"]
[SourceTitle "playchess.com"]
[Source "ChessBase"]
[SourceQuality "1"]
[TimeControl "5400+30"]

{[%evp 14,67,18,-18,-11,-3,-4,-10,-4,-21,0,0,0,0,8,0,18,22,23,31,16,16,14,11,22,22,41,40,40,46,41,54,43,39,34,39,59,46,82,68,79,70,66,70,77,61,71,53,49,49,49,58,63,44,47,0]} 1. c4 {[%emt 0:00:38]} Nf6 {[%emt 0:01:18]} 2. Nc3 {[%emt 0:00:11]} c5 {[%emt 0:04:05]} 3. Nf3 {[%emt 0:01:43]} g6 {[%emt 0:00:55]} 4. g3 {[%emt 0:06:47]} b6 {[%emt 0:03:15]} 5. Bg2 {[%emt 0:00:09]} Bb7 {[%emt 0:00:05]} 6. O-O {[%emt 0:01:53]} Bg7 {[%emt 0:00:05]} 7. d3 {[%emt 0:19:52]} O-O {[%emt 0:00:55]} 8. Bd2 {[%emt 0:02:10]} d5 {[%emt 0:05:19] A30: Symmetrical English: Double Fianchetto and Hedgehog.} 9. cxd5 {[%emt 0:00:22]} Nxd5 {[%emt 0:00:15]} 10. Qa4 {[%emt 0:00:30]} Nc6 {[%emt 0:08:20] The position is equal.} 11. Rfc1 {[%emt 0:03:35] [#]} Nd4 $146 {[%emt 0:18:32]} ({Predecessor:} 11... e6 12. Rab1 Qe7 13. a3 Rfc8 14. Bg5 Qd7 15. Qh4 Nd4 16. Nxd4 cxd4 17. Ne4 Rxc1+ 18. Rxc1 Rc8 19. Rxc8+ Bxc8 20. Nf6+ Nxf6 21. Bxf6 e5 22. Bxg7 {½-½ Karlsson,L (2470)-Astrom,R (2452) SWE-chT 9900 1999 (7)}) 12. Nxd4 {[%emt 0:00:37]} Bxd4 {[%emt 0:09:07]} 13. Rab1 {[%emt 0:05:17][%cal Ob2b4]} e6 {[%emt 0:10:09]} 14. a3 {[%emt 0:15:29]} Qe7 {[%emt 0:05:49]} 15. Nxd5 {[%emt 0:08:43]} Bxd5 {[%emt 0:01:38]} 16. Bxd5 {[%emt 0:00:12]} exd5 {[%emt 0:00:10]} 17. e3 {[%emt 0:00:06]} Bg7 {[%emt 0:01:06]} 18. b4 {[%emt 0:00:22]} Rfc8 {[%emt 0:02:49]} 19. Qa6 {[%emt 0:12:36]} c4 {[%emt 0:04:33]} 20. dxc4 {[%emt 0:02:29]} dxc4 {[%emt 0:00:11]} 21. Rxc4 {[%emt 0:00:41]} Rxc4 {[%emt 0:00:30]} 22. Qxc4 {[%emt 0:00:04]} Qd7 {[%emt 0:00:06]} 23. Be1 {[%emt 0:01:08]} Rc8 {[%emt 0:01:26]} 24. Qb3 {[%emt 0:02:55]} b5 {[%emt 0:01:15]} 25. Rd1 {[%emt 0:02:23]} Qf5 {[%emt 0:04:33]} 26. Rd5 {[%emt 0:06:14]} Qf3 {[%emt 0:00:49] [#] ...Rc1 is the strong threat.} 27. Bd2 {[%emt 0:00:29] Against Rc1+} (27. Rxb5 $2 {too greedy.} Rc1 28. Rb8+ Bf8 $19) (27. Qd3 {with more complications.} Rc1 28. Rd8+ Bf8 29. Qd2) 27... a6 {[%emt 0:01:52]} 28. Qd3 {[%emt 0:01:51] Rd8+ would be deadly.} h5 {[%emt 0:01:23]} 29. h4 {[%emt 0:01:30]} (29. e4 {simplifies} Qxd3 30. Rxd3 Bb2 31. Kg2) 29... Bf6 {[%emt 0:01:38]} 30. Rd7 {[%emt 0:01:34]} Be5 {[%emt 0:05:50][%cal Oe5g3] White is slightly better.} 31. e4 {[%emt 0:01:15]} Qxd3 {[%emt 0:02:44]} 32. Rxd3 {[%emt 0:00:02]} Rc4 {[%emt 0:00:18]} 33. Rd8+ {[%emt 0:01:48]} Kg7 {[%emt 0:01:09]} 34. Be3 {[%emt 0:00:53] Weighted Error Value: White=0.06 (flawless) /Black=0.07 (flawless)} (34. Ra8 $14) 1/2-1/2

[Event "SixDays Budapest March IM 2023"]
[Site "Budapest"]
[Date "2023.03.24"]
[Round "1.4"]
[White "Neszmenyi, Zoltan"]
[Black "Ulasevich, Sergei"]
[Result "0-1"]
[ECO "A04"]
[WhiteElo "1885"]
[BlackElo "2236"]
[Annotator "TA"]
[PlyCount "90"]
[EventDate "2023.03.24"]
[EventType "tourn"]
[EventCountry "HUN"]
[SourceTitle "playchess.com"]
[Source "ChessBase"]
[SourceQuality "1"]
[TimeControl "5400+30"]

{[%evp 20,90,-9,-14,4,-21,8,7,22,13,52,0,0,-7,0,-23,-5,-29,-11,-38,-41,-42,-43,-38,-18,-33,-12,-19,-19,-22,-18,-20,-19,-31,-16,-19,-24,-20,0,0,0,-17,-12,-22,0,0,0,-5,-6,-9,-6,-6,-7,-7,-11,-14,0,-8,-11,-58,-58,-58,-58,-236,-225,-325,-320,-294,-291,-322,-295,-323,-321]} 1. Nf3 {[%emt 0:00:34]} c5 {[%emt 0:00:54]} 2. c4 {[%emt 0:00:12]} g6 {[%emt 0:00:08]} 3. Nc3 {[%emt 0:00:10]} Bg7 {[%emt 0:00:30]} 4. e3 {[%emt 0:01:00]} Nf6 {[%emt 0:00:43]} 5. d4 {[%emt 0:00:23]} cxd4 {[%emt 0:00:21]} 6. exd4 {[%emt 0:00:21]} O-O {[%emt 0:00:33]} 7. Be2 {[%emt 0:03:14]} d5 {[%emt 0:00:57]} 8. O-O {[%emt 0:01:38]} Nc6 {[%emt 0:10:11][%cal Bb8c6,Bc6b4,Bb4d3][%mdl 32]} 9. h3 {[%emt 0:03:30]} dxc4 {[%emt 0:02:49]} 10. Bxc4 {[%emt 0:01:17]} a6 {[%emt 0:00:04]} 11. a4 {[%emt 0:02:37]} Qd6 {[%emt 0:09:55] D94: Grünfeld: 4 Nf3 Bg7 5 e3.} 12. Be3 {[%emt 0:05:53] [#]} Nb4 $146 {[%emt 0:03:00]} ({Predecessor:} 12... Bf5 13. d5 Na5 14. Ba2 Rac8 15. Bd4 Rfe8 16. Re1 Qb4 17. Ne5 Nd7 18. d6 Nxe5 19. Bxe5 exd6 {½-½ Kunal,M (2302)-Illingworth,M (2458) Abu Dhabi op 23rd 2016 (9)}) 13. Qb3 {[%emt 0:03:51]} Bf5 {[%emt 0:02:30] The position is equal.} 14. Rac1 {[%emt 0:01:08]} Bd3 {[%emt 0:15:51]} 15. Bxd3 {[%emt 0:01:35]} (15. Bxf7+ $1 $14 Rxf7 16. Ne5 {[%mdl 64] Pin}) 15... Nxd3 $11 {[%emt 0:00:04]} 16. Rcd1 {[%emt 0:02:08]} Nb4 {[%emt 0:00:34]} 17. Ne5 {[%emt 0:05:56] Nc4 is the strong threat.} Nbd5 {[%emt 0:05:42]} 18. Bd2 {[%emt 0:04:08]} (18. Bg5 $5 {[%cal Rg5f6]}) 18... Qb4 {[%emt 0:02:58]} 19. Qxb4 {[%emt 0:02:58]} (19. Qc2 $5 {[%cal Rc3d5]} Qxd4 20. Nxd5 Qxd5 21. Rfe1 $11) 19... Nxb4 {[%emt 0:00:09]} 20. Ne4 {[%emt 0:05:32][%mdl 64] [#] Black must now prevent Nxf6+. Discovered Attack} Nbd5 {[%emt 0:02:39]} 21. Nxf6+ {[%emt 0:03:19]} Nxf6 {[%emt 0:00:37]} 22. Rc1 {[%emt 0:03:29]} Nd5 {[%emt 0:01:34]} 23. Rc5 {[%emt 0:03:27]} Rfd8 {[%emt 0:01:42]} 24. Rfc1 {[%emt 0:04:09]} e6 {[%emt 0:06:21]} 25. b3 {[%emt 0:03:31]} Bf8 {[%emt 0:00:37]} 26. R5c4 {[%emt 0:01:46]} Bd6 {[%emt 0:03:24]} 27. g3 {[%emt 0:04:39]} f6 {[%emt 0:03:35]} 28. Nd3 {[%emt 0:02:05]} Nb6 {[%emt 0:05:25]} 29. R4c3 {[%emt 0:03:19]} Nd5 {[%emt 0:01:51]} 30. Rc4 {[%emt 0:00:53]} Kf7 {[%emt 0:00:29]} 31. Nc5 {[%emt 0:04:09]} b6 {[%emt 0:01:01]} 32. Nb7 {[%emt 0:02:53]} Rd7 {[%emt 0:00:08]} 33. Nxd6+ {[%emt 0:00:07]} Rxd6 {[%emt 0:00:05][%cal Bd7d6,Bd6d8,Bd8h8][%mdl 32]} 34. Kf1 {[%emt 0:03:40]} g5 {[%emt 0:02:24]} 35. Rc8 {[%emt 0:05:29]} Rd8 {[%emt 0:03:50]} 36. R8c6 {[%emt 0:01:50]} Ke7 {[%emt 0:01:13]} 37. Ke2 {[%emt 0:04:40]} Kd7 {[%emt 0:00:47]} 38. Kf3 {[%emt 0:03:49]} h5 {[%emt 0:01:20]} 39. g4 {[%emt 0:01:31]} (39. Ke4 $11) 39... hxg4+ $15 {[%emt 0:00:35]} 40. hxg4 {[%emt 0:00:46]} Rh8 {[%emt 0:00:20] ...Rh3+ would be deadly.} 41. Kg2 {[%emt 0:01:48] [#] Against Rh3. Now White is beyond hope.} ({White should try} 41. b4 $15) 41... Rh4 $1 $19 {[%emt 0:01:01]} 42. a5 {[%emt 0:00:59]} (42. Kg3 $142) 42... Rxg4+ {[%emt 0:05:22] Black has a decisive advantage.} 43. Kf3 {[%emt 0:00:16]} Rxd4 {[%emt 0:00:05]} 44. Be3 {[%emt 0:00:25]} Rb4 {[%emt 0:03:25]} 45. axb6 {[%emt 0:00:27]} Rxb3 {[%emt 0:00:07] Weighted Error Value: White=0.21 (precise) /Black=0.08 (flawless)} 0-1

[Event "SixDays Budapest March IM 2023"]
[Site "Budapest"]
[Date "2023.03.24"]
[Round "1.5"]
[White "Szeberenyi, Adam"]
[Black "Udvardi, Zalan"]
[Result "1/2-1/2"]
[ECO "B12"]
[WhiteElo "2338"]
[BlackElo "2260"]
[Annotator "TA"]
[PlyCount "51"]
[EventDate "2023.03.24"]
[EventType "tourn"]
[EventCountry "HUN"]
[SourceTitle "playchess.com"]
[Source "ChessBase"]
[SourceQuality "1"]
[TimeControl "5400+30"]

{[%evp 14,51,-26,-29,-36,-43,0,0,0,0,0,0,0,0,0,0,0,0,0,0,0,0,0,0,0,0,0,0,0,0,0,0,0,0,0,0,0,0,0,0]} 1. e4 {[%emt 0:00:32]} c6 {[%emt 0:00:33]} 2. d4 {[%emt 0:00:03]} d5 {[%emt 0:00:02]} 3. e5 {[%emt 0:00:04]} Bf5 {[%emt 0:00:03]} 4. Nc3 {[%emt 0:00:05]} e6 {[%emt 0:00:02]} 5. g4 {[%emt 0:00:03]} Bg6 {[%emt 0:00:02]} 6. Nge2 {[%emt 0:00:05]} c5 {[%emt 0:00:03]} 7. Be3 {[%emt 0:00:06]} Nc6 {[%emt 0:00:02]} 8. dxc5 {[%emt 0:00:08]} h5 {[%emt 0:00:03] B12: Caro-Kann: Advance Variation.} 9. Nf4 {[%emt 0:00:07]} d4 {[%emt 0:00:04]} (9... Bh7 $5 {[%cal Rd5d4]} 10. Bb5 (10. gxh5 $2 d4 $19) 10... hxg4 $15) 10. Nxg6 {[%emt 0:00:06] The position is equal.} (10. gxh5 $2 {is the wrong capture.} Bf5 11. Bd2 dxc3 12. Bxc3 Bxc5 $19) 10... fxg6 {[%emt 0:00:04]} 11. Qd3 {[%emt 0:00:09]} Kf7 {[%emt 0:00:06][%cal Oc6e5] [#]} (11... Nge7 $2 12. Nb5 $18) 12. Ne4 $146 {[%emt 0:00:06][%cal Bc3e4,Be4g5,Bg5e6][%mdl 32]} ({Reject} 12. gxh5 Rxh5 13. O-O-O (13. Rg1 $2 Nxe5 14. Qe4 dxe3 $19) 13... dxc3 14. Qxc3 Qe8 $17) ({Predecessor:} 12. O-O-O dxc3 13. Qe4 cxb2+ 14. Kxb2 Qxd1 15. Bd3 Qxg4 16. f4 Rd8 17. Rg1 Qf5 18. Qc4 Rxd3 19. cxd3 Nge7 20. Qc1 Nd5 21. Bd2 Be7 22. Qf1 Rd8 {0-1 Vlassov,N (2294)-Keymer,V (2654) Titled Tuesday intern op 03rd May Late blitz 2022 (6)}) 12... dxe3 {[%emt 0:00:04]} 13. Qxe3 {[%emt 0:00:06] [#] Strongly threatening Ng5+.} Nge7 {[%emt 0:00:04] Hoping for ...Qa5+.} 14. Ng5+ $1 {[%emt 0:00:13]} Kg8 {[%emt 0:00:04]} 15. Nxe6 {[%emt 0:00:07] Active counter play!} Qd5 {[%emt 0:00:03][%cal Od5e6]} 16. Nc7 {[%emt 0:00:09][%csl LRa8,LRd5]} Qxh1 {[%emt 0:00:06]} 17. O-O-O {[%emt 0:00:11] [#] Threatens to win with Bc4+.} Na5 {[%emt 0:00:06][%cal Oa8d8] White must now prevent ...Rd8!} 18. Qf4 $1 {[%emt 0:00:05]} Qc6 $1 {[%emt 0:00:05][%csl LRc5,LRc7]} 19. Bc4+ $1 {[%emt 0:00:11]} Nxc4 {[%emt 0:00:06]} 20. Qxc4+ {[%emt 0:00:03]} Kh7 {[%emt 0:00:06]} 21. Ne6 {[%emt 0:00:07]} Nd5 {[%emt 0:00:04]} 22. Ng5+ {[%emt 0:00:05]} Kh6 $1 {[%emt 0:00:03]} (22... Kg8 $2 23. Rxd5 Qa6 24. Qb3 $18) 23. Nf7+ {[%emt 0:00:04]} Kh7 {[%emt 0:00:04][%cal Of8c5] ...Bxc5! is the strong threat.} 24. Ng5+ $1 {[%emt 0:00:05]} Kh6 $1 {[%emt 0:00:04]} (24... Kg8 $2 25. Rxd5 Qa6 26. Qb3 $18) 25. Nf7+ {[%emt 0:00:03]} Kh7 {[%emt 0:00:08][%cal Of8c5] And now ...Bxc5! would win.} 26. Ng5+ $1 {A brilliant game!   Weighted Error Value: White=0.00 (flawless) /Black=0.03 (flawless)} 1/2-1/2

[Event "SixDays Budapest March IM 2023"]
[Site "Budapest"]
[Date "2023.03.25"]
[Round "2.1"]
[White "Pham, Tran Gia Phuc"]
[Black "Udvardi, Zalan"]
[Result "1-0"]
[ECO "D02"]
[WhiteElo "2238"]
[BlackElo "2260"]
[Annotator "TA"]
[PlyCount "97"]
[EventDate "2023.03.24"]
[EventType "tourn"]
[EventCountry "HUN"]
[SourceTitle "playchess.com"]
[Source "ChessBase"]
[SourceQuality "1"]
[TimeControl "5400+30"]

{[%evp 9,97,-8,2,12,13,16,18,14,31,31,45,37,39,41,40,26,30,22,40,41,43,34,43,54,46,30,33,29,39,-55,-62,-134,-138,-133,-146,-216,-118,-126,-134,-136,-130,-136,0,0,0,-75,-78,-207,-208,-210,-193,-182,-213,-206,-177,-429,-431,-417,-442,-758,-297,-273,0,-597,-412,-521,-337,-625,-620,-618,-227,-572,-554,-819,-768,-1988,-1599,-29964,-8,-29964,-6416,-4133,-4092,-1725,-8,-8,-8,-8,-8,-8]} 1. d4 {[%emt 0:00:32]} Nf6 {[%emt 0:06:50]} 2. Nf3 {[%emt 0:00:12]} d5 {[%emt 0:00:11]} 3. Bf4 {[%emt 0:00:07]} c5 {[%emt 0:00:12]} 4. e3 {[%emt 0:00:06]} e6 {[%emt 0:00:10]} 5. c3 {[%emt 0:00:05]} Bd6 {[%emt 0:00:08]} 6. Bd3 {[%emt 0:00:06] D02: 1 d4 d5 2 Nf3 sidelines, including 2...Nf6 3 g3 and 2...Nf6 3 Bf4.} Qc7 {[%emt 0:00:41]} 7. Bxd6 {[%emt 0:00:06]} Qxd6 {[%emt 0:00:11]} 8. Ne5 {[%emt 0:00:03]} Nbd7 {[%emt 0:00:54]} 9. f4 {[%emt 0:00:07]} b6 {[%emt 0:02:05]} 10. Nd2 {[%emt 0:00:11]} Bb7 {[%emt 0:00:32]} 11. Qf3 {[%emt 0:00:33]} Qe7 {[%emt 0:08:13] [#]} 12. g4 $146 {[%emt 0:05:35]} ({Predecessor:} 12. Rc1 g5 13. fxg5 Nxe5 14. dxe5 Nd7 15. Qf4 O-O-O 16. O-O Rdg8 17. Bb5 Rxg5 18. Qxf7 {0-1 Althoff,R (1974)-Wahedi,A (2256) Walsrode Chessemy op-A 2023 (3)}) 12... O-O-O {[%emt 0:15:05]} 13. a4 {[%emt 0:05:37]} Nxe5 {[%emt 0:08:14]} 14. fxe5 {[%emt 0:00:41]} Nd7 {[%emt 0:01:04][%cal Oh7h5]} 15. a5 {[%emt 0:02:42]} f6 {[%emt 0:04:06]} 16. exf6 {[%emt 0:00:22]} gxf6 {[%emt 0:00:31]} 17. axb6 {[%emt 0:02:45]} axb6 {[%emt 0:00:11]} 18. Bb5 {[%emt 0:02:41]} f5 {[%emt 0:08:48]} 19. O-O {[%emt 0:09:05]} ({White should try} 19. gxf5 $14 Rhf8 20. Qg3) 19... Rhg8 $15 {[%emt 0:01:29]} 20. Ra7 {[%emt 0:00:26]} (20. Kh1 $15) 20... Rxg4+ $17 {[%emt 0:03:20]} 21. Kh1 {[%emt 0:00:37][%cal Od2c4]} Rdg8 {[%emt 0:04:27]} 22. Rfa1 {[%emt 0:08:17]} (22. Qh3 $17 {keeps fighting.}) 22... Qg7 {[%emt 0:02:57]} (22... Qg5 $19 23. Bxd7+ Kxd7) 23. Qf1 {[%emt 0:02:54] Prevents Rg1+. Black must now prevent Ba6.} Nb8 {[%emt 0:04:05] Inhibits Ba6.} 24. Nf3 {[%emt 0:01:48][%cal Ob5a6]} Rg2 {[%emt 0:00:34]} 25. b4 {[%emt 0:02:55]} Rc2 {[%emt 0:07:33]} (25... c4 $17 {...Rc2 is the strong threat.} 26. R1a2 Rxa2 27. Rxa2 Bc6 28. Ba6+ Kc7) 26. bxc5 $11 {[%emt 0:04:58]} bxc5 {[%emt 0:00:27][%cal Bb6c5,Bc5c4][%mdl 32]} 27. Bd3 {[%emt 0:01:03]} (27. Rb1 $11 {remains equal.} Qg2+ 28. Qxg2 Rgxg2 29. dxc5) 27... Rb2 $17 {[%emt 0:01:32]} (27... Rxc3 28. Rb1 c4 29. Rbxb7 (29. Raxb7 Qxb7 30. Rxb7 Kxb7 $11) 29... Qxb7 30. Rxb7 Kxb7 31. Bxf5 (31. Qb1+ $2 Rb3 $19 {[%mdl 64] Deflection}) 31... exf5 32. Qb1+ Kc7 33. Qa1 Rxe3 34. Qa7+ Kd6 35. Qc5+ Ke6 36. Qb6+ Ke7 37. Qc5+ Ke6 38. Qb6+ Ke7 39. Qc5+ Ke6 $11) 28. R7a5 {[%emt 0:05:32]} (28. R7a2 $17 Rxa2 29. Rxa2) 28... c4 $19 {[%emt 0:01:03]} 29. Be2 {[%emt 0:01:07]} Nd7 {[%emt 0:03:12] Prevents Ne5. Threatens to win with ...Nf6.} 30. R5a2 {[%emt 0:02:54]} Rxa2 {[%emt 0:00:11]} 31. Rxa2 {[%emt 0:00:06]} Qh6 {[%emt 0:00:20] Against Nh4} 32. Qb1 $2 {[%emt 0:05:06]} (32. Qc1) 32... Qxe3 {[%emt 0:02:20]} 33. Ra7 {[%emt 0:02:15]} Bc6 {[%emt 0:00:13]} (33... Qxe2 $2 34. Qxb7+ Kd8 35. Qxd7#) 34. Ng1 {[%emt 0:01:05]} (34. Qe1 $142) 34... Qf2 $2 {[%emt 0:02:58]} (34... Nf6 35. Qa1 Bb7) 35. Qf1 {[%emt 0:00:05]} Qe3 {[%emt 0:01:05]} (35... Qxf1 $19 36. Bxf1 Kb8) 36. Qa1 {[%emt 0:00:37][%mdl 8192]} (36. Qb1 $1 $11 {and White has nothing to worry.} Nf6 37. Qa1) 36... Nb8 {[%emt 0:02:59]} ({Don't go for} 36... Qe4+ $2 37. Bf3 Qe3 38. Bg2 $17) 37. Rxh7 {[%emt 0:03:57]} f4 {[%emt 0:00:06] aiming for ...Qe4+.} ({Wrong is} 37... Qe4+ $2 38. Bf3 Qe3 39. Bg2 $19) 38. Bf3 {[%emt 0:00:26] [#] Repels Qe4} (38. Rh4 Be8 39. Rg4 Rxg4 40. Bxg4) 38... Rxg1+ $1 {[%emt 0:03:36][%mdl 576] Remove Defender} 39. Qxg1 {[%emt 0:00:05] Intending Qg8+ and mate.} Qxf3+ {[%emt 0:00:04]} 40. Qg2 {[%emt 0:00:03]} Qe4 {[%emt 0:00:12]} (40... Qxc3 $2 {is a self mate.} 41. Qg8+) 41. Rf7 {[%emt 0:00:06]} e5 {[%emt 0:01:19]} 42. Qxe4 {[%emt 0:05:08]} dxe4 {[%emt 0:00:05][%cal Bd5e4,Be4e3][%mdl 32]} 43. dxe5 {[%emt 0:00:03]} e3+ {[%emt 0:00:10]} 44. Kg1 {[%emt 0:00:03] [#]} f3 $1 {[%emt 0:00:06][%cal Bf4f3,Bf3f2][%mdl 32]} 45. e6 {[%emt 0:00:03]} f2+ {[%emt 0:00:57]} 46. Kf1 {[%emt 0:00:04]} Be4 $2 {[%emt 0:00:23]} ({Better is} 46... Kd8 $19 {( -> ...Be4)} 47. Rf4 Na6) 47. Rf8+ $11 {[%emt 0:00:03] The position is equal.} Kc7 {[%emt 0:00:08]} 48. e7 {[%emt 0:00:09] Dancing on a razor blade.} Bd3+ {[%emt 0:00:42]} 49. Kg2 {[%emt 0:00:05][%mdl 32768] Weighted Error Value: White=0.99/Black=0.69. Sensor Board Error (Ke4/e5)?} 1-0